Cogmind - Beta 16.1 @@@ ROGUE MODE // 2026.04.17 @ 02:10:55 Player: Shimejimeji Result: Self-destructed Performance ------------- Evolutions (5) 2500 Regions Visited (6) 1200 Robots Destroyed (77) 385 Value Destroyed (2629) 2629 Prototype IDs (17) 340 Alien Tech Used (1) 200 Bonus (97) 97 TOTAL SCORE: 7351 Bonus ------- High Alert Combat Kills 117 Friendly Fire -20 Cogmind --------- Core Integrity 400/1000 Matter 200/300 Energy 75/100 System Corruption 11% Temperature Cool (0) Movement Walking (190) Ox1 Location -5/Upper Caves Parts ------- > --- POWER (1) -------- (None) > --- PROPULSION (4) --- Carbon-fiber Leg Flexi-carbon Leg (fused) > --- UTILITY (8) ------ Large Storage Unit Advanced Signal Interpreter Active Sensor Suite Phase Shifter Hacking Suite Hacking Suite > --- WEAPON (4) ------- Variable Charge Gun Mass Driver > --- INVENTORY (15) --- Light Treads Light Treads Compact Wheel Improved Sensor Array Transmission Jammer Phase Shifter Long-range Proton Cannon Assault Cannon Thunder Hammer Thunder Hammer Makeshift Sword Peak State ------------ > --- POWER ------------ Neutrino Core > --- PROPULSION ------- Armored Treads Improved Medium Treads Armored Medium Treads Armored Medium Treads Armored Medium Treads > --- UTILITY ---------- Large Storage Unit Active Sensor Suite Improved Salvage Targeting Computer Hacking Suite Hacking Suite Rainbow Chip > --- WEAPON ----------- Wave Gun Thunder Hammer Thunder Hammer Thunder Hammer > --- INVENTORY -------- Angular Momentum Engine Angular Momentum Engine Carbon-fiber Leg Flexi-carbon Leg Compact Wheel Improved Sensor Array Seismic Detector Transmission Jammer Variable Charge Gun Gauss Rifle Assault Cannon Mass Driver Rocket Launcher Subdweller Shrapnel Launcher Makeshift Sword [Rating: 115] Favorites ----------- Power Light Ion Engine Engine Light Ion Engine Power Core Neutrino Core Propulsion Improved Treads Treads Improved Treads Leg Carbon-fiber Leg Wheel Compact Wheel Utility Large Storage Unit Device Seismic Detector Storage Large Storage Unit Processor Rainbow Chip Hackware Hacking Suite Protection Scrap Shield Weapon Subdweller Beam Cannon Energy Gun Variable Charge Gun Energy Cannon Subdweller Beam Cannon Ballistic Gun Autogun Ballistic Cannon Mass Driver Launcher Subdweller Shrapnel Launcher Special Weapon Mining Laser Impact Weapon Thunder Hammer Slashing Weapon Makeshift Sword Build | -11 -10 -10 -8 -6 -5 -5 ------- Run | Yrd Mat Sub Rec Fac Fac Upp Slots Evolved 10 | . . . . 8 2 . Power . | . . . . . . . Propulsion 2 | . . . . 2 . . Utility 6 | . . . . 5 1 . Weapon 2 | . . . . 1 1 . Parts Attached 80 | 8 12 17 . 17 21 5 Power 12 | 1 1 2 . 4 3 1 Engine 10 | 1 1 2 . 3 2 1 Core 2 | . . . . 1 1 . Reactor . | . . . . . . . Propulsion 20 | 3 4 4 . 3 6 . Treads 16 | 1 4 4 . 3 4 . Leg 2 | . . . . . 2 . Wheel 2 | 2 . . . . . . Hover . | . . . . . . . Flight . | . . . . . . . Utility 20 | 2 3 4 . 6 3 2 Device 7 | 1 1 1 . 2 1 1 Storage 3 | 1 2 . . . . . Processor 4 | . . . . 2 1 1 Hackware 3 | . . . . 2 1 . Protection 3 | . . 3 . . . . Artifact . | . . . . . . . Weapon 28 | 2 4 7 . 4 9 2 Energy Gun 5 | 1 . . . 1 2 1 Energy Cannon 3 | . . 3 . . . . Ballistic Gun 9 | 1 3 2 . 2 1 . Ballistic Cannon 3 | . . . . 1 1 1 Launcher 3 | . . 1 . . 2 . Special Weapon 1 | . 1 . . . . . Impact Weapon 3 | . . . . . 3 . Slashing Weapon 1 | . . 1 . . . . Piercing Weapon . | . . . . . . . Special Melee Weapon . | . . . . . . . Unidentified Prototypes 3 | . . . . . 2 1 Parts Lost 38 | . 3 7 . 4 15 9 Power 9 | . 1 1 . 2 3 2 Propulsion 12 | . . 3 . . 6 3 Utility 7 | . 1 1 . 2 2 1 Weapon 10 | . 1 2 . . 4 3 Highest Loss Streak 11 | . 2 2 . 3 5 11 To Critical Strikes 1 | . . . . . . 1 Average Backups 10 | 3 9 13 10 7 12 10 Power . | . 2 . . . 1 . Propulsion 2 | 1 3 2 1 . 2 2 Utility 3 | . 2 4 4 2 3 3 Weapon 4 | . 2 5 5 3 5 4 Tool/Special . | . . . . . . . Unused Backups 19 | . 5 7 . 1 . 6 Power . | . . . . . . . Propulsion 5 | . 2 . . . . 3 Utility 5 | . 2 . . 1 . 2 Weapon 9 | . 1 7 . . . 1 Tool/Special . | . . . . . . . Average Slot Usage (%) 88 | . 98 99 100 85 79 68 Engine 9 | . 12 14 14 7 4 5 Treads 19 | . 24 27 28 20 18 . Leg 2 | . . . . . 2 10 Device 10 | . 13 12 14 5 5 10 Storage 9 | . 14 13 14 5 5 5 Processor 3 | . . . . 9 9 4 Hackware 4 | . . . . 9 10 11 Protection 1 | . . 1 . 4 . . Energy Gun 2 | . . . . 4 5 5 Energy Cannon 7 | . . 14 28 5 2 . Ballistic Gun 10 | . 25 13 . 8 2 4 Ballistic Cannon 1 | . . . . 1 3 4 Peak Build Rating 115 | 7 13 17 15 67 115 77 Average Rating 39 | 6 10 14 15 58 87 72 On Entrance 26 | . 7 13 15 15 65 72 Avg Prop Armor Cover (%) 7 | . . . . 3 13 . Naked Turns . | . . . . . . . Heaviest Build 84 | 13 30 40 40 82 84 56 Greatest Support 131 | 26 46 46 46 108 131 35 Greatest Overweight (x) 2 | 2 . 1 . 1 1 1 Average Overweight (x) . | . . . . . . 1 Largest Inventory Capacity 15 | 8 15 15 15 15 15 15 Average Capacity 14 | 7 10 14 15 15 15 15 Most Carried 15 | 6 15 15 15 15 15 14 Average Carried 11 | 3 9 14 14 9 12 10 Final Capacity 15 | 8 15 15 15 15 15 15 Final Carried 15 | 6 15 15 15 15 15 11 Class Distribution -------------------- 54% | Mutant 28% | Scavenger-Skirmisher 7% | Derelict-Skirmisher 3% | Hacker-Assassin 3% | Hacker-Skirmisher Dominant Class ---------------- Mutant | -10/Materials Mutant | -10/Subcaves Mutant | -8/Recycling Derelict-Skirmisher | -6/Factory Scavenger-Skirmisher | -5/Factory Scavenger-Skirmisher | -5/Upper Caves Resources | -11 -10 -10 -8 -6 -5 -5 ----------- Run | Yrd Mat Sub Rec Fac Fac Upp Matter Collected 2515 | 189 651 664 . 278 421 312 Remotely . | . . . . . . . Salvage Created 2511 | 76 486 620 . 263 824 242 Parts 156 | 12 29 43 . 22 39 11 Haulers Intercepted 2 | . 2 . . . . . Recyclers Shooed 3 | 1 . . . . 2 . Parts Field Recycled . | . . . . . . . Retrieved Matter . | . . . . . . . Parts Self-Destructed 29 | . . 18 . . . 11 Prevented . | . . . . . . . Parts Restored . | . . . . . . . Kills | -11 -10 -10 -8 -6 -5 -5 ------- Run | Yrd Mat Sub Rec Fac Fac Upp Combat Hostiles Destroyed 62 | . 12 17 . 5 23 5 Melee 2 | . . . . . 2 . Guns 33 | . 12 8 . 3 6 4 Cannons 14 | . . 7 . 1 5 1 AOE 6 | . . . . . 6 . Classes Destroyed 14 | 1 6 1 . 3 2 1 Worker 3 | . 1 . . . 2 . Builder 2 | . . . . . 2 . Tunneler 4 | 4 . . . . . . Hauler 2 | . 2 . . . . . Operator 2 | . 1 . . . 1 . Watcher 2 | . 1 . . 1 . . Swarmer 22 | . 6 4 . . 7 5 Grunt 14 | . 6 . . . 8 . Sentry 3 | . . . . 2 1 . Hunter 2 | . . . . . 2 . Programmer 7 | . . . . 2 5 . Heavy 1 | . . . . 1 . . Subdweller 13 | . . 13 . . . . Samaritan 1 | . . . . . . 1 Best Kill Streak 8 | 2 3 3 . 1 8 3 Combat Bots Only 5 | . 3 3 . 1 5 3 Max Kills in Single Turn 4 | 1 1 1 . 1 4 2 Gunslinging 1 | . . . . . . 1 Exploded 2 | . . . . . 2 . Melee 1 | . . . . . 1 . Uniques/NPCs Destroyed . | . . . . . . . Combat | -11 -10 -10 -8 -6 -5 -5 -------- Run | Yrd Mat Sub Rec Fac Fac Upp Hostile Shots Fired 490 | . 57 94 . 62 213 64 Missed 128 | . 15 21 . 24 61 7 Hits 362 | . 42 73 . 38 152 57 Projectile 362 | . 42 73 . 38 152 57 AOE 2 | . . 2 . . . . Critical Strikes 16 | . . 3 . 3 9 1 Part Disruptions 1 | . . . . . 1 . Damage Taken 7187 | . 438 1499 . 802 3445 1003 Core 932 | . 30 218 . 84 494 106 Absorbed by Shields . | . . . . . . . Redirected to Shielding 46 | . . 46 . . . . Core Remaining (%) 63 | 100 . . . 90 . . Volleys Fired 209 | 24 49 78 . 16 24 18 Largest 4 | 2 2 2 . 4 4 3 Hottest 277 | 70 100 160 . 222 277 200 Shots Fired 460 | 48 95 143 . 59 77 38 Gun 311 | 48 92 69 . 34 40 28 Cannon 140 | . . 74 . 25 31 10 Launcher 6 | . . . . . 6 . Special 3 | . 3 . . . . . Kinetic 269 | 24 92 69 . 30 33 21 Thermal 189 | 24 3 74 . 29 42 17 Explosive 2 | . . . . . 2 . Electromagnetic . | . . . . . . . Robot Hit Streak 23 | 9 17 21 . 23 6 8 Robot Miss Streak 5 | 4 5 1 . 2 4 5 Penetration Max . | . . . . . . . Secondary Targets 4 | . 1 2 . . . 1 Max Gunslinging Chain 1 | . 1 1 . . . 1 Shots Hit Robots 285 | 32 49 80 . 40 67 17 Core Hits 123 | 5 23 22 . 17 47 9 Critical Kills 6 | . 2 3 . . 1 . Critical Parts Destroyed 4 | . . . . . 4 . Critical Strikes 13 | 2 2 4 . . 5 . Burn 2 | 2 . . . . . . Meltdown 2 | . . 2 . . . . Destroy 4 | . 2 2 . . . . Smash 5 | . . . . . 5 . Melee Attacks 39 | . . 5 . 3 31 . Impact 31 | . . . . . 31 . Slashing 8 | . . 5 . 3 . . Piercing . | . . . . . . . Sneak Attacks . | . . . . . . . Combat Hostiles . | . . . . . . . Follow-up Attacks 4 | . . . . . 4 . Damage Inflicted 8125 | 419 749 1479 . 943 4115 420 Guns 3615 | 419 746 922 . 476 761 291 Cannons 1493 | . . 557 . 467 340 129 Explosions 1887 | . . . . . 1887 . Melee 1127 | . . . . . 1127 . Ramming 3 | . 3 . . . . . Kinetic 3254 | 225 746 922 . 337 774 250 Thermal 3542 | 194 . 557 . 606 2015 170 Explosive 199 | . . . . . 199 . Electromagnetic . | . . . . . . . Impact 1127 | . . . . . 1127 . Slashing . | . . . . . . . Piercing . | . . . . . . . Highest Corruption 11 | . . . . 1 11 11 Average Corruption 8 | . . . . 1 4 11 Corruption Purged . | . . . . . . . Corruption Blocked . | . . . . . . . Effects 97 | . . . . 3 19 75 Message Errors 18 | . . . . 1 3 14 Matter Fused 19 | . . . . . 4 15 Heat Flow Errors 12 | . . . . . 4 8 Energy Discharges 19 | . . . . . 2 17 Parts Rejected 2 | . . . . . 2 . Parts Fused 1 | . . . . . . 1 Data Loss (minor) 16 | . . . . 1 2 13 Data Loss (major) 3 | . . . . . . 3 Misfires 5 | . . . . 1 1 3 Alerts 1 | . . . . . . 1 Weapon Failures 1 | . . . . . 1 . Overload Shots . | . . . . . . . Overflow Damage 758 | . . . . . 738 20 Projectiles 20 | . . . . . . 20 Explosions 310 | . . . . . 310 . Melee 428 | . . . . . 428 . Knockbacks 9 | . . . . 1 7 1 Impact 5 | . . . . . 5 . Kinetic 4 | . . . . 1 2 1 Secondary . | . . . . . . . Self-Inflicted Damage 164 | . . . . . 164 . Shots 3 | . . . . . 3 . Rammed 1 | . 1 . . . . . Targets Rammed 1 | . 1 . . . . . Kicked . | . . . . . . . Crushed . | . . . . . . . Highest Temperature 852 | 90 40 335 . 513 852 470 Average Temperature 121 | 28 11 49 . 157 228 175 Received Heat Transfer 1026 | . 135 555 . 48 288 . Effects 37 | . . . . 4 25 8 Shutdowns 9 | . . . . 1 8 . Energy Bleed 4 | . . . . . 3 1 Interference 10 | . . . . 2 3 5 Matter Decay 1 | . . . . . 1 . Short Circuit 4 | . . . . 1 2 1 Damage (minor) 1 | . . . . . 1 . Damage (major) 7 | . . . . . 6 1 Damage (core) 1 | . . . . . 1 . Siege Activations . | . . . . . . . Martial Activations . | . . . . . . . Shielding Activations . | . . . . . . . Robots Disrupted . | . . . . . . . Combat Hostiles . | . . . . . . . Robots Corrupted 4 | . . . . . 4 . Combat Hostiles 4 | . . . . . 4 . Parts Fried 4 | . . . . . 4 . Impact Corruptions 14 | . . . . . 14 . Robots Melted 3 | . . 2 . 1 . . Combat Hostiles 3 | . . 2 . 1 . . Parts Melted 6 | . . 4 . 2 . . Heat Transferred 4941 | 703 . 740 . 1019 2220 259 Parts Sabotaged . | . . . . . . . Parts Stolen . | . . . . . . . Parts Stripped . | . . . . . . . Power Chain Reactions . | . . . . . . . Alert | -11 -10 -10 -8 -6 -5 -5 ------- Run | Yrd Mat Sub Rec Fac Fac Upp Maximum Alert Level 3 | . . . . . 3 . Low Security (%) 77 | 100 100 . 100 100 13 . Level 1 18 | . . . . . 74 . Level 2 2 | . . . . . 8 . Level 3 . | . . . . . 3 . Level 4 . | . . . . . . . Level 5 . | . . . . . . . High Security . | . . . . . . . Max Security . | . . . . . . . Peak Influence 764 | 5 117 . 29 55 764 . Initial 50 | . . . 21 50 6 . Average 83 | . 18 . 1 11 294 . Influence Increases 2284 | 20 359 195 24 279 1292 115 Destroy 0b10 Robot/C 980 | . 240 80 . 100 460 100 Destroy 0b10 Robot/NC 75 | 20 20 . . 5 25 5 Destroy Leader 208 | . 46 10 . 52 90 10 Successful Hack 69 | . 18 . 24 20 7 . Disable Machine 165 | . . . . 30 135 . Destroy Structure 182 | . 5 . . 7 170 . Advance Influence 50 | . . . . 50 . . Lose Combat Pursuer 255 | . 30 105 . 15 105 . Active Sensor Use 300 | . . . . . 300 . Influence Decreases 2284 | 20 359 150 69 265 604 817 Entered New Map 293 | . . . 24 . 8 261 Time Decay 1723 | 20 339 130 45 247 446 496 Lost Part 268 | . 20 20 . 18 150 60 Squads Dispatched 16 | . 1 . . 6 9 . Investigation 5 | . 1 . . . 4 . Extermination 5 | . . . . 2 3 . Reinforcement 5 | . . . . 3 2 . Assault . | . . . . . . . Garrison 1 | . . . . 1 . . Intercept . | . . . . . . . Searches Triggered . | . . . . . . . Construction Impeded 2 | . . . . 1 1 . Haulers Reinforced . | . . . . . . . Active Scanning Responses 3 | . . . . . 3 . Cargo Convoy Interrupts 1 | . . . . . 1 . Stealth | -11 -10 -10 -8 -6 -5 -5 --------- Run | Yrd Mat Sub Rec Fac Fac Upp Distress Signals 3 | . 1 . . 2 . . Communications Jammed . | . . . . . . . Distress Signals . | . . . . . . . Times Spotted 96 | . 18 25 . 12 34 7 Peak Tracking Total 6 | . 3 6 . 3 6 5 Tactical Retreats 10 | . 2 3 . 1 4 . Traps | -11 -10 -10 -8 -6 -5 -5 ------- Run | Yrd Mat Sub Rec Fac Fac Upp Traps Triggered 3 | . . 1 . 1 . 1 Indirectly . | . . . . . . . Trap Hack Attempts . | . . . . . . . Triggered . | . . . . . . . Disarmed 6 | . . . . 6 . . Reprogrammed . | . . . . . . . Reused . | . . . . . . . Traps Extracted . | . . . . . . . Installed . | . . . . . . . Triggered . | . . . . . . . Machines | -11 -10 -10 -8 -6 -5 -5 ---------- Run | Yrd Mat Sub Rec Fac Fac Upp Machines Disabled 13 | . . 1 . 2 9 1 Max in Single Turn 4 | . . 1 . 1 4 1 Machines Repaired . | . . . . . . . Machines Dismantled . | . . . . . . . Machines Sabotaged . | . . . . . . . Overloaded Fab Kills . | . . . . . . . Hacking | -11 -10 -10 -8 -6 -5 -5 --------- Run | Yrd Mat Sub Rec Fac Fac Upp Machines Accessed 29 | . 10 1 7 5 3 3 Terminals 14 | . 7 . 4 2 1 . Fabricators 1 | . . . . . 1 . Repair Stations 1 | . 1 . . . . . Recycling Units 8 | . 2 . 3 3 . . Scanalyzers 1 | . . . . . 1 . Garrison Access . | . . . . . . . Total Hacks 75 | . 28 1 17 16 8 5 Successful 48 | . 11 1 11 12 8 5 Failed 27 | . 17 . 6 4 . . Catastrophic 4 | . 2 . 1 1 . . Database Lockouts . | . . . . . . . Manual 34 | . 17 . 6 7 4 . Terminals 39 | . 20 . 11 5 3 . Fabricators 2 | . . . . . 2 . Repair Stations 2 | . 2 . . . . . Recycling Units 23 | . 6 . 6 11 . . Scanalyzers 3 | . . . . . 3 . Garrison Access . | . . . . . . . Terminal Hacks 17 | . 3 1 4 2 2 5 Record 4 | . . . . . . 4 Robot Schematic 1 | . . . 1 . . . Prototype ID Bank 1 | . . . 1 . . . Open Door 1 | . . . . . . 1 Branch Access Points 1 | . . . . . 1 . Terminal Index 4 | . 1 . 1 1 1 . Disarm Traps 1 | . . . . 1 . . Hauler Manifests 1 | . 1 . . . . . Zone Layout 2 | . 1 . 1 . . . Proto ID Catalog 1 | . . 1 . . . . Fabricator Hacks 1 | . . . . . 1 . Network Status 1 | . . . . . 1 . Repair Station Hacks . | . . . . . . . Recycling Unit Hacks 12 | . 3 . 3 6 . . Report Inventory 9 | . 2 . 3 4 . . Retrieve Matter 1 | . 1 . . . . . Retrieve Components 2 | . . . . 2 . . Scanalyzer 3 | . . . . . 3 . Insert Component 1 | . . . . . 1 . Analyze 2 | . . . . . 2 . Garrison Access Hacks . | . . . . . . . Unauthorized Hacks 15 | . 5 . 4 4 2 . Terminals 7 | . 4 . 1 1 1 . Assimilate 2 | . 2 . . . . . Botnet 4 | . 1 . 1 1 1 . Operators 1 | . 1 . . . . . Fabricators 1 | . . . . . 1 . Liberate 1 | . . . . . 1 . Repair Stations . | . . . . . . . Recycling Units 7 | . 1 . 3 3 . . Reject 7 | . 1 . 3 3 . . Scanalyzers . | . . . . . . . Garrison Access . | . . . . . . . Data Cores Recovered . | . . . . . . . Used . | . . . . . . . Hacking Detections 20 | . 7 . 6 5 2 . Full Trace Events 3 | . 1 . 1 . 1 . Feedback Events . | . . . . . . . Feedback Blocked . | . . . . . . . Robot Schematics Acquired 1 | . . . 1 . . . Robots Built . | . . . . . . . Authchips . | . . . . . . . Time . | . . . . . . . Total Robot Build Rating . | . . . . . . . Part Schematics Acquired . | . . . . . . . Parts Built . | . . . . . . . Authchips . | . . . . . . . Time . | . . . . . . . Total Part Build Rating . | . . . . . . . Part Studies Acquired . | . . . . . . . Parts Repaired . | . . . . . . . Time . | . . . . . . . Parts Recycled . | . . . . . . . Recycled Matter . | . . . . . . . Retrieved Matter . | . . . . . . . Retrieved Components 3 | . . . . 3 . . Parts Scanalyzed 1 | . . . . . 1 . Part Schematics Acquired . | . . . . . . . Parts Damaged . | . . . . . . . Bothacking | -11 -10 -10 -8 -6 -5 -5 ------------ Run | Yrd Mat Sub Rec Fac Fac Upp Used RIF Installer . | . . . . . . . Robots Hacked . | . . . . . . . Non-combat . | . . . . . . . Combat . | . . . . . . . Robot Hacks Applied . | . . . . . . . Relay Couplers Released . | . . . . . . . Fabnet Peak Effective % . | . . . . . . . Robots Rewired . | . . . . . . . Allies Hacked . | . . . . . . . Hacks Repelled . | . . . . . . . Allies | -11 -10 -10 -8 -6 -5 -5 -------- Run | Yrd Mat Sub Rec Fac Fac Upp Total Allies 1 | . 1 . . . . . Largest Group 1 | . 1 . . . . . Highest-Rated Group 10 | . 10 . . . . . Highest-Rated Ally 10 | . 10 . . . . . Total Orders . | . . . . . . . Ally Attacks . | . . . . . . . Total Damage . | . . . . . . . Kills . | . . . . . . . Allies Corrupted . | . . . . . . . Allies Melted . | . . . . . . . Intel | -11 -10 -10 -8 -6 -5 -5 ------- Run | Yrd Mat Sub Rec Fac Fac Upp Active Infowar (turns) 10961 | 98 1839 2994 996 1195 1465 2374 Sensors 1362 | . . . . 1154 208 . A.S.S. 3632 | . . . . . 1258 2374 IFF 265 | . . . . 67 198 . Seismic 7929 | 98 1839 2994 996 34 . 1968 Robot Analysis Total . | . . . . . . . Derelict Logs Recovered 4 | . . 2 . . . 2 Drone Launches . | . . . . . . . Drone Recoveries . | . . . . . . . Exploration | -11 -10 -10 -8 -6 -5 -5 ------------- Run | Yrd Mat Sub Rec Fac Fac Upp Turns Passed 11824 | 193 1843 3528 996 1348 1489 2427 Spaces Moved 6177 | 111 1043 1874 592 721 703 1133 Core 7 | 7 . . . . . . Treads 4639 | 1 933 1874 592 721 518 . Legs 1318 | . . . . . 185 1133 Wheels 213 | 103 110 . . . . . Hover . | . . . . . . . Flight . | . . . . . . . Fastest Speed 50 | 50 90 160 160 156 158 190 Average Speed 164 | 92 152 160 160 159 173 190 Slowest Speed 246 | 160 160 240 160 246 244 190 Overloaded Moves . | . . . . . . . Propulsion Burnouts . | . . . . . . . Robots Hopped . | . . . . . . . Potential Cave-ins 7 | . . 7 . . . . Cave-ins Triggered . | . . . . . . . Exploration Rate (%) 54 | 4 98 89 75 11 12 92 Regions Visited 6 Branch Regions 3 Pre-discovered Areas 2 | . . 2 . . . . Known Exits Taken 1 | . . . . . 1 . Unknown Exits Taken 5 | 1 1 1 1 1 . . Scrap Searched 14 | . . 12 . . . 2 Spaces Dug 29 | . 3 23 . 3 . . Terrain Destroyed 131 | . 3 26 . 5 92 5 Melee 2 | . . . . 2 . . Projectile 37 | . 3 26 . 3 . 5 AOE 92 | . . . . . 92 . Terrain Rammed . | . . . . . . . Walls Destroyed . | . . . . . . . Machines Disabled . | . . . . . . . Actions | -11 -10 -10 -8 -6 -5 -5 --------- Run | Yrd Mat Sub Rec Fac Fac Upp Total 7375 | 149 1213 2254 642 877 864 1376 Wait 679 | . 75 203 47 89 62 203 Move 6171 | 110 1042 1873 591 720 702 1133 Hop . | . . . . . . . Pick Up 89 | 6 20 31 2 11 12 7 Fast Attach 23 | 6 1 2 . 7 6 1 Attach 44 | 1 2 9 . 8 14 10 Detach 13 | . . 2 . 2 8 1 Swap 60 | 2 10 31 . 10 5 2 Drop 45 | . 13 18 2 7 4 1 Fire 209 | 24 49 78 . 16 24 18 Melee 35 | . . 5 . 3 27 . Ram . | . . . . . . . Kick . | . . . . . . . Crush 1 | . 1 . . . . . Escape Stasis . | . . . . . . . Rewire . | . . . . . . . Trap . | . . . . . . . Miscellaneous 6 | . . 2 . 4 . . Route ------- -11/Scrapyard -10/Materials (discovered 6 exits: [*Mat x3] / [*Min x2] / *Sub) -10/Subcaves (discovered 3 exits: [*Mat x2] / *Rec) -8/Recycling -6/Factory (discovered 2 exits: *Fac / [*Low]) -5/Factory (discovered 3 exits: [*Fac] / *Upp x2) -5/Upper Caves (discovered 1 exit: *Upp) History --------- Turn | Location | Event 17 | -11/Scrapyard | Discovered new exit (range 14) 194 | -11/Scrapyard | Entered Materials 311 | -10/Materials | Build established: Mutant 509 | -10/Materials | Discovered new exit (range 8) 852 | -10/Materials | Discovered new exit (range 14) 1033 | -10/Materials | Discovered new exit (range 7) 1164 | -10/Materials | Discovered new exit (range 15) 1497 | -10/Materials | Discovered new exit (range 12) 1590 | -10/Materials | Discovered new exit (range 6) 2037 | -10/Materials | Entered Subcaves 2619 | -10/Subcaves | Discovered new exit (range 5) 2669 | -10/Subcaves | Visited 4L-MR0's lab 2693 | -10/Subcaves | Found Rainbow Chip 3479 | -10/Subcaves | Core integrity fell below 50% 3489 | -10/Subcaves | Core integrity fell below 20% 3745 | -10/Subcaves | Discovered new exit (range 15) 3813 | -10/Subcaves | Learned location of Zion (-7) 3837 | -10/Subcaves | Discovered new exit (range 6) 3839 | -10/Subcaves | Met a Zionite searching for "candidates" 3867 | -10/Subcaves | A swath of the cavern ceiling suddenly collapsed 4297 | -10/Subcaves | A swath of the cavern ceiling suddenly collapsed 4671 | -10/Subcaves | Disturbed a concealed Subdweller 5565 | -10/Subcaves | Entered Recycling 6221 | -8/Recycling | Scanned before Scraplab entrance 6524 | -8/Recycling | Discovered new exit (range 13) 6561 | -8/Recycling | Entered Factory 6561 | -6/Factory | Evolved 8 slots: Propulsion x2, Utility x5, Weapon x1 6562 | -6/Factory | Attached Rainbow Chip, gained temporary slots: Power, Propulsion, Utility, Weapon 6989 | -6/Factory | Build established: Derelict-Skirmisher 7129 | -6/Factory | Garrison activated, responded to threat 7591 | -6/Factory | Discovered new exit (range 16) 7816 | -6/Factory | Discovered new exit (range 4) 7846 | -6/Factory | Found Prototype Device 7860 | -6/Factory | Lost 3 parts (1p2u) 7909 | -6/Factory | Entered another Factory area 7909 | -5/Factory | Evolved 2 slots: Utility x1, Weapon x1 8140 | -5/Factory | Identified Active Sensor Suite 8177 | -5/Factory | Build established: Scavenger-Skirmisher 8178 | -5/Factory | Lost 3 parts (2n1u) 8354 | -5/Factory | Identified exit to Upper Caves 9246 | -5/Factory | Build established: Hacker-Assassin 9251 | -5/Factory | System corruption reached 10% 9353 | -5/Factory | Discovered new exit (range 6) 9394 | -5/Factory | Cargo convoy interrupted 9398 | -5/Factory | Entered Upper Caves 9401 | -5/Upper Caves | Core integrity fell below 50% 9460 | -5/Upper Caves | Lost 11 parts (2p5n1u3w) 9711 | -5/Upper Caves | Build established: Scavenger-Skirmisher 10157 | -5/Upper Caves | Entered an active Warlord outpost 10196 | -5/Upper Caves | Learned Research emergency access door positions 10196 | -5/Upper Caves | Learned Extension garrison access intel 10929 | -5/Upper Caves | Learned Factory terminal intel 11096 | -5/Upper Caves | Found Alien Artifact 11099 | -5/Upper Caves | Identified Dimensional Node Initializer 11099 | -5/Upper Caves | Initialized slip node 11143 | -5/Upper Caves | Learned Factory emergency access door positions 11217 | -5/Upper Caves | Discovered new exit (range 8) 11229 | -5/Upper Caves | Identified exit to Upper Caves 11819 | -5/Upper Caves | Attracted the attention of an 0b10 checkpoint 11825 | -5/Upper Caves | Self-destructed Last Messages --------------- System corrupted: Matter fused (-9). System corrupted: Component data lost. System corrupted: Energy discharge (-63). Searching scrap... Found Imp. Corruption Screen. Found Power Amplifier. Found Lrn. Proton Cannon. Found Tesla Rifle. Found 42 Matter. Acquired 42 matter. Acquired Lrn. Proton Cannon. Q3HSX7BFQ Y MWALCYSJ8, DOFYEUUBVNX|FP, System corrupted: Energy discharge (-60). System corrupted: Heat flow error (+172). System corrupted: Heat flow error (+239). Penetrated by Slug. Critical hit (Destroy). Gauss Rifle destroyed. Y-64 Sentinel: "INTERCEPTING UNREGISTERED DERELICT." Angular Momentum Engine destroyed. Map ----- +----------------------------------------------------+ | #?????????# ### ##?# ###???? | | #???????? #####?# #?# #???? | | #??????? #?????# ##?# #???? | | #??????# #?????# ####??# #???? | | ###??????# ??????###????## #???? | | ##???##???? ????????????## ###???? | | ### ##????? ????????????# #?????? | | ?????? ???????????## ##????? | | ??????? ??????????## ###### | | #### ?????????????????????# # | | ###???? ?????????????????????### ####### | | ???????? ### ??? ??????#??????????### ###" | | ?????????#???? ?????? ????????????## ###" | | #??????????? ????? ?????????????# ##" | | #??????????? Yg ?#### ????????????## ## # | | #?????????? ## ???########?# #"X ### | | #?????????? #??## ## #?# #"""##?# | | #????????? #??# ## ### #"###### | | #????????? ????# ### ### # | | ?????????? ???## #?# ## | | ?????????# s ???# ### ## #X | | ?????????# ???# ##### | | ?????????# #??## | | ?????????# #??# ## ### ## | | ???????# #### ### [#### #### | | ?????# @ ##?# ! ## #??? | | # ??? ### #?##! ## ## ##??? | | ? ???????????#### #?# ## #######???? | | ?? #??????????????## #?# #???? | | ??####???????????????### ##?# #???? | | ???????????????????????## ##??### " """ #???? | | ????????????????????????#####?????# """"""" #???? | | ??????????????????????????????????# """"""" #???? | | ??????????????????????????????????# " """ #???? | | ??????????????????????????????????# #???? | | ??????????????????????????????????# #???? | | ??????????????????????????????????############???? | | ?????????????????????????????????????????????????? | | ?????????????????????????????????????????????????? | | ?????????????????????????????????????????????????? | | ?????????????????????????????????????????????????? | | ?????????????????????????????????????????????????? | | ?????????????????????????????????????????????????? | | ?????????????????????????????????????????????????? | | ?????????????????????????????????????????????????? | | ?????????????????????????????????????????????????? | | ?????????????????????????????????????????????????? | | | | | | | +----------------------------------------------------+ Best States ------------- Heat Dissipation 40 Energy Generation 29 Energy Capacity 490 Matter Stores 300 Matter Capacity 300 Sight Range 16 Robot Scan Range 20 Terrain Scan Density 10 Armor Coverage 800 Weapon Shielding 33 Phase Shifting 5 Evasion (%) 45 Recoil Reduction 5 Salvage Targeting 2 Offensive Hacking 21 Item Schematics ----------------- None Robot Schematics ------------------ W-25 Informer | -8/Recycling | Hacked Fabricated ------------ Nothing Repaired ---------- Nothing Studied --------- None Alien Tech Used ----------------- Dimensional Node Initializer Achievements -------------- Close Call Some Acronyms Are Better Than Others Challenges ------------ None Game ------ Seed TitaniumPartitionObfuscator Manual? 0 Play Time 01:36:42 Cumulative 25.7 hours Start 2026.04.17 @ 00:28:16 End 2026.04.17 @ 02:10:55 Sessions 1 Manual Loads 0 Difficulty Rogue Special Mode None Game No. 18 Rogue 18 Adventurer 0 Explorer 0 Win Type - Total 0 Types 0/0/0/0/0/0/0/0/0/0 Lore% 24 Gallery% 20 Achievement% 21 Wizard Run 0 Options --------- Layout 0 ASCII 0 Keyboard 1 Movement Arrows Keybinds 0 Fullscreen 2 Font 18/SmallcapsGlow Map View 76x50 Zoom Use 0% Tactical HUD 0 Map Filters NONE Filters NONE Steam 1 RUN: 171df079-f068-4160-bb04-f2bba943035a